bitfinex/quotes_SOLUSD_20251018
["timestamp","ask_amount","ask_price","bid_price","bid_amount"]
[1760781966540,1.99547145,186.21,186.2,0.71]
[1760781966739,1.99547145,186.21,186.18,6.08106577]
[1760781967051,1.99547145,186.21,186.19,0.71]
[1760781967233,1.99547145,186.21,186.17,14.88474424]
[1760781967432,1.99547145,186.21,186.18,6.08107272]
[1760781967656,1.99547145,186.21,186.19,0.71]
[1760781968531,1.99547145,186.24,186.2,1.24705692]
[1760781968835,1.99547145,186.25,186.21,0.71]
[1760781969044,1.99547145,186.24,186.2,8.51894272]
[1760781969242,1.99547145,186.23,186.2,0.71]
[1760781969766,1.99547145,186.22,186.2,0.71]
[1760781969949,1.99547145,186.22,186.2,62.71]
[1760781970264,1.99547145,186.23,186.21,0.71]
[1760781971238,1.99547145,186.23,186.2,64.15406984]
[1760781971454,1.99547145,186.23,186.21,0.71]
[1760781973158,1.99547145,186.22,186.2,62.0]
[1760781974043,1.99547145,186.22,186.21,0.69]
[1760781974653,1.99547145,186.23,186.21,0.69]
[1760781975046,1.99547145,186.24,186.21,0.69]
[1760781975359,1.99547145,186.24,186.22,0.69]
[1760781975766,1.99547145,186.25,186.23,0.69]
[1760781980066,1.99547145,186.26,186.24,62.69]
[1760781980267,1.99547145,186.25,186.24,62.0]
[1760781980563,2.71547145,186.25,186.24,62.0]
[1760781981360,1.99547145,186.25,186.24,62.0]
[1760781982350,1.99547145,186.25,186.22,0.69]
[1760781982665,1.99547145,186.23,186.22,0.69]
[1760781984161,0.72,186.27,186.22,0.69]
[1760781984361,1.99547145,186.23,186.22,0.69]
[1760781985357,1.99547145,186.24,186.22,0.69]
[1760781985556,1.99547145,186.24,186.23,0.69]
[1760781986675,1.99547145,186.24,186.21,7.9818858]
[1760781986850,1.99547145,186.23,186.2,67.90755769]
[1760781987169,1.99547145,186.22,186.21,0.69]
[1760781988364,1.99547145,186.24,186.21,6.06019864]
[1760781988546,1.99547145,186.24,186.22,0.69]
[1760781989174,1.99547145,186.23,186.2,67.907577]
[1760781989377,1.99547145,186.22,186.2,70.95620894]
[1760781989955,1.99547145,186.22,186.21,0.69]
[1760781990152,1.99547145,186.22,186.2,62.0]
[1760781990357,1.99547145,186.21,186.2,62.0]
[1760781991571,0.72,186.24,186.2,62.0]
[1760781991774,1.99547145,186.21,186.2,62.0]
[1760781992581,1.99547145,186.21,186.2,62.69]
[1760781993480,1.99547145,186.22,186.2,63.22705692]
[1760781993778,1.99547145,186.22,186.21,0.69]
[1760781995062,1.99547145,186.22,186.2,64.15406984]
[1760781995280,1.99547145,186.21,186.2,62.0]
[1760781995478,10.69735725,186.21,186.15,67.37188166]
[1760781995660,1.99547145,186.18,186.16,1.22717232]
[1760781995861,1.99547145,186.2,186.17,0.69]
[1760781996073,1.99547145,186.2,186.18,0.69]
[1760781998181,0.72,186.26,186.19,1.22708577]
[1760781998361,1.99547145,186.23,186.2,0.69]
[1760781998561,1.99547145,186.23,186.21,0.69]
[1760782000270,1.99547145,186.24,186.21,0.69]
[1760782000482,1.99547145,186.24,186.19,1.22708577]
[1760782000676,2.71547145,186.24,186.2,0.69]
[1760782002274,1.99547145,186.24,186.2,0.69]
[1760782002475,2.71547145,186.24,186.2,0.69]
[1760782002984,2.71547145,186.24,186.2,62.69]
[1760782004380,1.99547145,186.24,186.2,62.0]
[1760782004583,1.99547145,186.24,186.21,0.7]
[1760782004973,1.99547145,186.25,186.22,0.7]
[1760782005177,1.99547145,186.25,186.23,0.7]
[1760782005493,1.99547145,186.26,186.24,0.7]
[1760782005669,1.99547145,186.27,186.24,0.7]
[1760782005990,1.99547145,186.26,186.24,0.7]
[1760782006171,1.99547145,186.26,186.21,62.53702808]
[1760782006375,1.99547145,186.26,186.22,0.7]
[1760782006582,1.99547145,186.26,186.23,0.7]
[1760782008669,1.99547145,186.27,186.23,0.7]
[1760782008867,1.99547145,186.28,186.24,0.7]
[1760782009679,1.99547145,186.28,186.25,0.7]
[1760782010788,1.99547145,186.29,186.26,0.7]
[1760782010997,1.99547145,186.31,186.27,0.7]
[1760782011196,2.69547145,186.31,186.27,0.7]
[1760782011994,1.99547145,186.3,186.27,0.7]
[1760782012294,1.99547145,186.3,186.27,0.5368551]
[1760782012591,0.8,186.33,186.28,0.7]
[1760782012795,1.99547145,186.32,186.29,0.7]
[1760782012979,1.99547145,186.32,186.27,0.5368551]
[1760782013180,1.99547145,186.3,186.26,5.90564609]
[1760782013496,0.1,186.33,186.25,62.0]
[1760782013497,1.99547145,186.28,186.25,62.0]
[1760782013692,1.99547145,186.28,186.25,62.7]
[1760782014600,1.99547145,186.3,186.26,0.7]
[1760782014779,1.99547145,186.3,186.27,0.7]
[1760782016893,1.99547145,186.3,186.26,5.90571155]
[1760782017194,0.7,186.32,186.28,0.7]
[1760782017195,1.99547145,186.31,186.28,0.7]
[1760782017374,3.11855372,186.31,186.28,0.7]
[1760782017780,3.11855372,186.31,186.28,62.7]
[1760782018484,3.11855372,186.3,186.28,62.7]
[1760782018687,3.11855372,186.3,186.29,0.7]
[1760782018984,3.11855372,186.31,186.29,0.7]
[1760782019184,0.1,186.33,186.3,0.7]
[1760782019491,3.11855372,186.32,186.3,0.7]
[1760782020597,0.1,186.33,186.31,0.7]
[1760782021075,3.21855372,186.33,186.31,0.7]
[1760782021492,3.81855372,186.32,186.28,62.0]
[1760782021682,3.11855372,186.29,186.28,62.0]
[1760782022000,3.11855372,186.29,186.27,0.7]
[1760782022211,3.11855372,186.28,186.26,62.0]
[1760782022397,3.11855372,186.27,186.26,62.0]
[1760782022592,3.11855372,186.27,186.24,11.82000412]
[1760782022898,3.11855372,186.27,186.25,0.7]
[1760782024597,3.11855372,186.26,186.24,62.0]
[1760782024793,3.11855372,186.25,186.24,62.0]
[1760782027304,3.11855372,186.25,186.22,62.0]
[1760782027499,3.11855372,186.23,186.22,62.0]
[1760782027802,3.78855372,186.23,186.22,62.0]
[1760782028699,3.78855372,186.23,186.16,62.71]
[1760782028901,0.67,186.22,186.16,62.71]
[1760782029203,3.11855372,186.17,186.16,62.71]
[1760782029707,3.11855372,186.18,186.16,62.71]
[1760782030081,3.11855372,186.17,186.16,62.71]
[1760782030296,0.67,186.24,186.16,0.71]
[1760782030487,3.11855372,186.18,186.16,0.71]
[1760782031310,3.11855372,186.18,186.17,0.71]
[1760782031809,3.11855372,186.18,186.15,0.71]
[1760782032009,3.11855372,186.18,186.16,0.71]
[1760782033692,3.11855372,186.18,186.17,0.7]
[1760782034194,0.65,186.23,186.17,0.7]
[1760782034394,3.11855372,186.19,186.17,0.7]
[1760782034807,3.11855372,186.18,186.17,0.7]
[1760782035701,3.11855372,186.19,186.17,0.7]
[1760782036107,3.11855372,186.19,186.18,0.7]
[1760782039714,0.65,186.23,186.18,0.7]
[1760782040021,3.11855372,186.19,186.18,0.7]
[1760782042520,3.76855372,186.19,186.14,62.0]
[1760782042727,3.11855372,186.21,186.14,62.0]
[1760782042728,3.11855372,186.15,186.14,62.0]
[1760782043514,3.76855372,186.15,186.14,62.0]
[1760782043908,3.11855372,186.15,186.14,62.0]
[1760782047425,3.11855372,186.15,186.13,62.2]
[1760782047600,3.11855372,186.15,186.13,62.9]
[1760782048219,3.11855372,186.15,186.13,62.2]
[1760782048420,3.76855372,186.14,186.13,0.2]
[1760782049119,3.11855372,186.14,186.13,0.2]
[1760782051328,3.76855372,186.14,186.13,0.2]
[1760782053409,4.05287686,186.14,186.13,0.2]
[1760782054321,0.93432314,186.14,186.13,0.2]
[1760782054531,4.05287686,186.14,186.13,0.2]
[1760782055912,7.17143058,186.14,186.13,0.2]
[1760782057328,12.54373099,186.14,186.13,0.2]
[1760782058230,7.17143058,186.14,186.13,0.2]
[1760782059229,12.54373099,186.14,186.13,0.2]
[1760782059543,12.54373099,186.14,186.12,0.2]
[1760782059720,6.23710744,186.13,186.12,0.2]
[1760782060132,6.88710744,186.13,186.12,0.2]
[1760782061414,12.54401963,186.13,186.12,0.2]
[1760782061923,0.28432314,186.12,186.11,0.2]
[1760782062128,7.17143058,186.12,186.11,0.2]
[1760782063441,12.54430829,186.12,186.09,0.2]
[1760782063626,3.11855372,186.1,186.09,0.2]
[1760782064230,0.28432314,186.1,186.09,0.2]
[1760782064436,3.40287686,186.1,186.09,0.88]
[1760782064830,3.40287686,186.1,186.09,0.2]
[1760782069833,4.08287686,186.1,186.09,0.2]
[1760782070156,9.45633199,186.1,186.09,0.2]
[1760782071627,3.40287686,186.1,186.09,0.2]
[1760782073565,0.28432314,186.1,186.09,0.2]
[1760782073731,3.40287686,186.1,186.09,0.2]
[1760782077456,2.28566081,186.1,186.09,0.2]
[1760782080152,8.33911594,186.1,186.09,0.2]
[1760782080344,0.28432314,186.09,186.06,0.2]
[1760782080558,2.00133767,186.07,186.06,0.2]
[1760782081567,2.96566081,186.07,185.99,0.2]
[1760782081739,8.00535068,186.03,186.0,0.68]
[1760782081939,2.00133767,186.01,185.99,0.2]
[1760782082139,2.00133767,186.0,185.99,0.2]
[1760782083055,2.00133767,186.0,185.99,0.88]
[1760782086260,2.00133767,186.01,185.99,0.88]
[1760782086441,2.00133767,186.01,186.0,0.72]
[1760782091668,2.00133767,186.01,186.0,62.72]
[1760782096466,2.00133767,186.01,186.0,62.0]
[1760782097059,2.00133767,186.01,185.99,0.2]
[1760782097258,2.00133767,186.0,185.99,0.92]
[1760782097868,2.00133767,186.0,185.99,0.2]
[1760782098660,2.00133767,186.0,185.99,0.92]
[1760782098967,2.00133767,186.0,185.99,0.2]
[1760782100558,2.28566081,186.0,185.99,0.2]
[1760782108374,2.00133767,186.0,185.99,0.2]
[1760782108582,2.00133767,186.0,185.99,0.92]
[1760782109154,2.00133767,186.0,185.99,0.2]
[1760782109580,2.00133767,186.0,185.99,0.92]
[1760782111693,2.00133767,186.01,185.99,0.92]
[1760782111989,2.00133767,186.0,185.99,0.2]
[1760782112964,3.00566081,186.0,185.99,0.2]
[1760782113197,3.00566081,186.0,185.98,0.2]
[1760782113492,2.28566081,185.99,185.98,0.2]
[1760782121295,3.00566081,185.99,185.98,0.2]
[1760782121489,2.28566081,185.99,185.98,0.2]
[1760782125314,0.28432314,186.01,185.98,0.2]
[1760782125600,2.00133767,185.99,185.98,0.2]
[1760782128307,2.28566081,185.99,185.98,0.2]
[1760782129290,2.00133767,185.99,185.98,0.9]
[1760782129784,2.00133767,185.99,185.98,0.2]
[1760782132410,2.00133767,185.99,185.98,0.9]
[1760782137395,2.00133767,185.99,185.98,0.2]
[1760782137396,4.12435846,185.99,185.98,0.2]
[1760782138490,3.41435846,185.99,185.98,0.2]
[1760782139701,4.12435846,185.99,185.98,0.2]
[1760782139891,9.50099161,185.99,185.98,0.2]
[1760782140091,3.41435846,185.99,185.98,0.2]
[1760782141510,4.12435846,185.99,185.98,0.2]
[1760782141711,9.50099161,185.99,185.98,0.2]
[1760782149515,8.79099161,185.99,185.98,0.2]
[1760782149716,9.46099161,185.99,185.98,0.2]
[1760782149918,8.79099161,185.99,185.98,0.2]
[1760782150117,9.46099161,185.99,185.98,0.2]
[1760782151034,8.79099161,185.99,185.98,0.2]
[1760782151824,9.46099161,185.99,185.98,0.2]
[1760782153718,0.28432314,185.98,185.95,0.2]
[1760782153909,3.41435846,185.96,185.95,0.2]
[1760782154409,3.41435846,185.96,185.95,0.88]
[1760782155113,0.28432314,185.96,185.95,0.88]
[1760782155514,3.41435846,185.96,185.95,0.88]
[1760782156925,0.28432314,185.95,185.94,0.2]
[1760782157105,7.20439378,185.95,185.94,0.2]
[1760782157310,6.54439378,185.95,185.94,0.88]
[1760782157817,6.54439378,185.95,185.94,0.2]
[1760782158728,3.41435846,185.95,185.94,0.2]
[1760782161111,6.54439378,185.95,185.94,0.2]
[1760782162533,12.5821835,185.95,185.9,0.2]
[1760782162841,3.41435846,185.91,185.9,0.88]
[1760782172635,4.07435846,185.91,185.9,0.2]
[1760782172842,3.41435846,185.91,185.9,0.88]
[1760782173731,3.13003532,185.91,185.9,0.88]
[1760782173928,3.13003532,185.91,185.9,62.88]
[1760782175038,3.13175626,185.91,185.9,62.88]
[1760782181862,0.28432314,185.97,185.9,62.88]
[1760782182069,3.13175626,185.91,185.9,62.2]
[1760782182655,3.13175626,185.91,185.9,62.88]
[1760782184465,0.28432314,185.98,185.9,62.88]
[1760782184645,0.28432314,185.98,185.91,1.25789468]
[1760782184850,0.14216157,185.98,185.92,0.72]
[1760782185050,3.13175626,185.93,185.92,0.72]
[1760782185352,3.13175626,185.93,185.92,62.72]
[1760782187962,3.13175626,185.93,185.92,68.09640818]
[1760782192963,3.13175626,185.93,185.92,62.72]
[1760782193163,3.13175626,185.93,185.92,62.0]
[1760782195161,3.13175626,185.93,185.91,62.0]
[1760782195365,3.13175626,185.92,185.91,62.72]
[1760782196477,3.13175626,185.92,185.91,65.85175626]
[1760782199466,2.00430684,185.92,185.91,65.85175626]
[1760782200965,2.00430684,185.92,185.91,62.72]
[1760782202882,2.00430684,185.92,185.91,62.0]
[1760782204473,2.00430684,185.92,185.91,62.72]
[1760782204865,2.00430684,185.92,185.91,62.0]
[1760782205971,2.00430684,185.92,185.91,62.71]
[1760782207079,2.00430684,185.92,185.91,0.71]
[1760782208262,2.00430684,185.92,185.91,6.08725667]
[1760782211672,2.00430684,185.92,185.91,5.37725667]
[1760782211873,2.00430684,185.92,185.9,62.2]
[1760782212084,2.00430684,185.91,185.9,62.91]
[1760782212263,2.00430684,185.91,185.9,62.2]
[1760782212468,2.00430684,185.91,185.9,62.91]
[1760782213276,2.00430684,185.91,185.9,71.59722736]
[1760782214093,2.00430684,185.91,185.9,62.91]
[1760782215191,2.00430684,185.91,185.9,62.2]
[1760782215374,2.94862998,185.91,185.9,62.2]
[1760782215688,2.94862998,185.91,185.9,0.2]
[1760782215888,2.28862998,185.91,185.9,0.2]
[1760782216393,2.00430684,185.91,185.9,0.2]
[1760782218198,2.66430684,185.91,185.9,0.2]
[1760782218395,2.94862998,185.91,185.9,0.2]
[1760782218893,0.28432314,185.9,185.85,0.66]
[1760782219199,2.00430684,185.86,185.85,62.0]
[1760782219574,2.00430684,185.86,185.85,62.66]
[1760782220696,2.00430684,185.86,185.85,62.0]
[1760782221269,2.00430684,185.86,185.85,62.66]
[1760782223691,2.00430684,185.86,185.85,62.0]
[1760782224291,2.00430684,185.86,185.85,62.66]
[1760782224489,2.00430684,185.86,185.8,62.76]
[1760782224490,10.96585734,185.86,185.8,62.76]
[1760782224691,0.28432314,185.86,185.8,62.1]
[1760782224890,8.01722736,185.85,185.82,2.15883638]
[1760782225297,8.67722736,185.85,185.82,2.15883638]
[1760782225484,8.01722736,185.85,185.82,2.81883638]
[1760782226094,2.00430684,185.83,185.82,2.81883638]
[1760782226479,2.00430684,185.83,185.82,2.15883638]
[1760782226794,2.00430684,185.83,185.81,0.66]
[1760782226991,2.00430684,185.82,185.81,8.67722736]
[1760782227214,2.00430684,185.82,185.81,70.67722736]
[1760782230000,2.00430684,185.84,185.81,70.67722736]
[1760782230191,5.08887661,185.9,185.82,1.1981552]
[1760782230395,2.00430684,185.85,185.83,0.66]
[1760782230594,2.00430684,185.85,185.83,62.66]
[1760782230804,2.00430684,185.85,185.84,0.66]
[1760782230998,2.00430684,185.86,185.84,1.19809728]
[1760782231196,2.00430684,185.86,185.84,68.57702333]
[1760782231486,2.00430684,185.86,185.85,0.66]
[1760782232407,2.00430684,185.87,185.85,0.66]
[1760782232596,2.00430684,185.86,185.84,67.91702333]
[1760782233306,2.00430684,185.86,185.85,0.66]
[1760782233616,0.66,185.91,185.85,0.66]
[1760782233797,2.00430684,185.87,185.85,62.66]
[1760782233994,2.00430684,185.87,185.86,0.66]
[1760782234194,2.00430684,185.87,185.86,3.35629335]
[1760782234815,2.00501625,185.87,185.86,2.81825397]
[1760782235916,2.00501625,185.87,185.86,2.15825397]
[1760782236095,2.00501625,185.87,185.85,62.0]
[1760782236295,2.00501625,185.86,185.85,62.0]
[1760782238604,10.68508125,185.86,185.8,0.1]
[1760782238918,2.00501625,185.81,185.8,0.1]
[1760782239420,2.00501625,185.81,185.8,8.120065]
[1760782240807,2.00501625,185.81,185.8,8.780065]
[1760782242418,2.00501625,185.81,185.8,8.120065]
[1760782242723,2.00501625,185.81,185.8,8.780065]
[1760782242918,2.00501625,185.81,185.8,8.120065]
[1760782243717,2.00501625,185.81,185.8,8.790065]
[1760782243915,2.00501625,185.81,185.8,8.120065]
[1760782244223,2.00501625,185.81,185.8,8.790065]
[1760782246000,2.00501625,185.81,185.8,8.120065]
[1760782246811,2.00501625,185.81,185.8,0.1]
[1760782249802,2.00501625,185.83,185.8,1.30821313]
[1760782250017,2.00501625,185.83,185.81,0.67]
[1760782250327,2.00501625,185.83,185.82,0.67]
[1760782251718,2.00501625,185.83,185.81,2.15883638]
[1760782251922,0.69,185.86,185.81,0.67]
[1760782251923,2.00501625,185.82,185.81,0.67]
[1760782253017,2.00501625,185.82,185.8,2.79716603]
[1760782253210,0.69,185.86,185.81,0.67]
[1760782253524,0.69,185.85,185.81,0.67]
[1760782253821,0.69,185.85,185.81,3.427743]
[1760782254728,0.69,185.86,185.82,0.67]
[1760782256007,2.00501625,185.83,185.82,0.67]
[1760782259326,3.13452103,185.83,185.82,0.67]
[1760782260024,0.69,185.87,185.82,0.67]
[1760782260216,3.13452103,185.83,185.82,62.67]
[1760782260424,3.13452103,185.83,185.82,68.33415493]
[1760782260804,3.13452103,185.83,185.82,62.67]
[1760782261810,0.37781603,185.83,185.82,62.67]
[1760782267419,0.37781603,185.83,185.82,62.0]
[1760782270246,0.37781603,185.83,185.82,62.69]
[1760782271627,0.37781603,185.83,185.82,62.0]
[1760782272225,1.06781603,185.83,185.82,62.0]
[1760782272431,0.37781603,185.83,185.82,62.0]
[1760782275128,0.37781603,185.83,185.81,0.7]
[1760782275429,3.13452103,185.82,185.81,0.7]
[1760782275642,3.13452103,185.82,185.81,62.7]
[1760782279168,6.36420023,185.88,185.81,63.23818416]
[1760782279375,3.13452103,185.82,185.81,62.53818416]
[1760782280075,3.13488379,185.82,185.81,63.23818416]
[1760782282467,0.7,185.86,185.81,63.23818416]
[1760782282658,3.13488379,185.82,185.81,62.53818416]
[1760782283252,3.13488379,185.82,185.81,63.23818416]
[1760782283455,3.13488379,185.83,185.81,66.37306795]
[1760782283652,0.7,185.9,185.82,0.7]
[1760782283870,3.13488379,185.84,185.83,0.53812624]
[1760782284068,3.13488379,185.84,185.83,10.9391062]
[1760782287059,3.13488379,185.84,185.83,1.23812624]
[1760782288457,3.13488379,185.84,185.83,6.61770214]
[1760782288757,3.13488379,185.84,185.83,68.61770214]
[1760782291174,3.13488379,185.85,185.83,68.61770214]
[1760782291379,3.13488379,185.85,185.84,0.7]
[1760782291760,3.13488379,185.85,185.84,10.40098974]
[1760782292878,3.13488379,185.85,185.84,72.40098974]
[1760782293083,0.28432314,185.91,185.84,72.40098974]
[1760782293273,3.13488379,185.89,185.85,1.23806833]
[1760782293471,3.13488379,185.9,185.86,0.7]
[1760782293681,3.13488379,185.9,185.87,0.53801043]
[1760782293987,3.13488379,185.9,185.88,0.7]
[1760782294180,3.13488379,185.91,185.89,0.53795255]
[1760782294382,3.13488379,185.91,185.9,0.7]
[1760782294780,3.13488379,185.91,185.9,5.62761116]
[1760782296982,3.13488379,185.91,185.9,4.92761116]
[1760782297188,3.83488379,185.91,185.87,0.7]
[1760782297389,3.13488379,185.89,185.88,1.23798149]
[1760782297590,3.13488379,185.89,185.88,6.6154906]
[1760782298461,3.13488379,185.89,185.88,5.9154906]
[1760782299070,3.13488379,185.89,185.88,6.6154906]
[1760782304001,3.79488379,185.89,185.84,62.0]
[1760782304193,3.13488379,185.86,185.85,1.25806833]
[1760782304489,3.13488379,185.86,185.85,9.77128769]
[1760782305068,0.66,185.91,185.85,9.77128769]
[1760782305069,3.13488379,185.87,185.85,9.77128769]
[1760782305386,3.13488379,185.87,185.86,0.72]
[1760782305567,3.13488379,185.89,185.86,0.72]
[1760782305774,3.13488379,185.89,185.87,0.53801043]
[1760782305972,3.79488379,185.94,185.88,0.72]
[1760782305973,3.13488379,185.9,185.88,0.72]
[1760782306180,3.13488379,185.9,185.89,0.53795255]
[1760782306686,3.13488379,185.9,185.89,1.25795255]
[1760782310474,3.13488379,185.9,185.89,63.25795255]
[1760782311692,3.13488379,185.9,185.89,66.39283634]
[1760782312887,3.13488379,185.9,185.89,65.67283634]
[1760782315801,3.79488379,185.9,185.89,65.13488379]
[1760782319404,2.66517845,185.9,185.89,65.13488379]
[1760782320599,2.94950159,185.9,185.89,3.13488379]
[1760782320799,2.66517845,185.9,185.86,62.0]
[1760782320998,0.66,185.9,185.86,62.72]
[1760782321198,0.94432314,185.92,185.87,16.90777822]
[1760782321395,0.66,185.91,185.87,16.90777822]
[1760782321592,0.66,185.9,185.87,16.18777822]
[1760782322494,2.00517845,185.88,185.87,16.18777822]
[1760782323403,2.00517845,185.88,185.87,16.90777822]
[1760782323707,2.00517845,185.88,185.87,17.44578865]
[1760782325388,2.00517845,185.88,185.87,79.44578865]
[1760782326406,2.00517845,185.88,185.87,78.90777822]
[1760782327194,2.00517845,185.88,185.87,78.18777822]
[1760782327591,2.00517845,185.88,185.87,78.85777822]
[1760782329108,0.72,185.91,185.87,78.85777822]
[1760782329291,2.00517845,185.88,185.87,78.85777822]
[1760782329491,2.00517845,185.88,185.87,62.67]
[1760782329691,2.00517845,185.88,185.87,76.06880249]
[1760782335816,2.00517845,185.88,185.87,75.39880249]
[1760782335997,2.00517845,185.88,185.87,75.93681292]
[1760782336191,2.00517845,185.88,185.87,76.60681292]
[1760782336615,2.00517845,185.89,185.87,76.60681292]
[1760782336811,2.00517845,185.89,185.87,75.93681292]
[1760782337113,2.00517845,185.89,185.88,0.67]
[1760782337493,2.00517845,185.89,185.88,8.6907138]
[1760782337693,1.00432314,185.95,185.88,70.6907138]
[1760782337892,2.00517845,185.9,185.89,1.20795255]
[1760782338107,2.00517845,185.9,185.89,63.20795255]
[1760782338416,2.00517845,185.9,185.89,72.9628102]
[1760782338917,2.00517845,185.91,185.89,72.9628102]
[1760782339110,2.00517845,185.91,185.9,0.67]
[1760782339614,2.00517845,185.91,185.9,10.70918079]
[1760782342519,2.00517845,185.91,185.9,10.03918079]
[1760782342704,2.72517845,185.91,185.9,10.03918079]
[1760782343109,0.72,185.91,185.9,10.03918079]
[1760782343310,2.72517845,185.91,185.9,10.03918079]
[1760782343511,2.72517845,185.91,185.86,1.20803938]
[1760782343821,2.00517845,185.87,185.86,1.20803938]
[1760782344314,2.00517845,185.87,185.86,6.87105023]
[1760782348231,2.00517845,185.87,185.86,6.20105023]
[1760782350639,2.00517845,185.87,185.86,6.87105023]
[1760782351940,2.00517845,185.87,185.86,68.87105023]
[1760782354258,2.00517845,185.89,185.86,68.87105023]
[1760782354451,2.00517845,185.9,185.87,0.67]
[1760782354638,2.00517845,185.9,185.88,0.53798149]
[1760782354837,2.00517845,185.9,185.89,0.67]
[1760782355449,2.00517845,185.9,185.89,9.4107138]
[1760782355623,2.00517845,185.9,185.89,9.94866635]
[1760782356737,2.00517845,185.9,185.89,9.4107138]
[1760782358439,2.00517845,185.92,185.89,9.4107138]
[1760782358640,2.00517845,185.92,185.9,1.20792361]
[1760782358844,2.00517845,185.92,185.91,0.67]
[1760782359155,2.00517845,185.92,185.91,5.18978613]
[1760782360448,0.72,185.96,185.91,5.18978613]
[1760782360449,2.00517845,185.93,185.91,5.18978613]
[1760782360841,2.00517845,185.93,185.91,0.67]
[1760782361037,2.00517845,185.93,185.92,4.37762456]
[1760782361232,2.00517845,185.93,185.92,5.04762456]
[1760782361850,25.0,186.04,185.92,5.04762456]
[1760782362158,2.00517845,185.96,185.93,1.20783682]
[1760782362338,2.00517845,185.96,185.94,0.67]
[1760782362646,2.00517845,185.96,185.95,1.20777897]
[1760782363042,2.00517845,185.96,185.95,6.58377057]
[1760782363252,2.68517845,185.96,185.95,5.3759916]
[1760782364533,2.00517845,185.96,185.95,5.3759916]
[1760782371254,5.06049005,186.01,185.95,6.0759916]
[1760782371453,2.00517845,185.96,185.95,67.91377057]
[1760782371660,2.00517845,185.96,185.95,62.53777897]
[1760782371838,4.38049005,186.01,185.95,68.61382423]
[1760782372041,2.00517845,185.96,185.95,67.91382423]
[1760782372242,2.00517845,185.96,185.95,62.53777897]
[1760782372443,2.00517845,185.96,185.95,67.91382423]
[1760782372646,2.00517845,185.96,185.95,68.61382423]
[1760782377044,2.00517845,185.96,185.95,67.91382423]
[1760782377462,2.00517845,185.96,185.95,68.61382423]
[1760782380451,2.00517845,185.96,185.95,67.37604526]
[1760782381451,3.13081841,185.96,185.95,67.37604526]
[1760782382553,3.81081841,185.96,185.95,67.37604526]
[1760782382953,3.13081841,185.96,185.95,67.37604526]
[1760782383873,3.81081841,185.96,185.95,5.37604526]
[1760782384072,0.28432314,185.95,185.89,0.7]
[1760782384373,3.13081841,185.9,185.89,62.7]
[1760782384750,3.13081841,185.9,185.89,68.07750053]
[1760782385474,3.13081841,185.91,185.89,68.07750053]
[1760782385647,3.13081841,185.92,185.9,1.21792361]
[1760782385852,3.13081841,185.92,185.91,0.68]
[1760782386052,3.13081841,185.92,185.91,6.05699599]
[1760782388562,0.66,185.96,185.91,6.05699599]
[1760782388763,3.13081841,185.93,185.92,1.21786574]
[1760782388971,3.13081841,185.94,185.92,1.21786574]
[1760782389176,3.13081841,185.94,185.93,0.68]
[1760782389882,3.13081841,185.94,185.93,6.0563509]
[1760782390169,3.13081841,185.95,185.93,68.0563509]
[1760782390358,3.13081841,185.95,185.94,1.21780789]
[1760782390977,3.13081841,185.95,185.94,4.3486263]
[1760782393481,3.13081841,185.95,185.94,65.6686263]
[1760782393777,3.80081841,185.95,185.94,65.13081841]
[1760782394157,3.13081841,185.95,185.94,65.13081841]
[1760782394477,3.80081841,185.95,185.94,65.13081841]
[1760782395275,3.13081841,185.95,185.94,65.13081841]
[1760782396958,0.67,185.98,185.94,65.13081841]
[1760782397158,3.13081841,185.95,185.94,65.13081841]
[1760782397454,3.13081841,185.95,185.93,62.7]
[1760782397662,0.67,185.97,185.94,3.13081841]
[1760782398075,0.28432314,185.98,185.94,3.13081841]
[1760782398256,0.67,185.97,185.94,3.13081841]
[1760782398775,3.13081841,185.95,185.94,3.13081841]
[1760782401768,3.13081841,185.95,185.94,3.83081841]
[1760782404379,3.13081841,185.95,185.94,3.13081841]
[1760782404571,3.13081841,185.95,185.94,3.83081841]